[Event "European Women-ch 2023"]
[Site "Petrovac"]
[Date "2023.03.27"]
[Round "9.15"]
[White "Makka, Ioulia"]
[Black "Tsotsonava, Elene"]
[Result "1/2-1/2"]
[ECO "B47"]
[WhiteElo "1949"]
[BlackElo "2030"]
[Annotator "TA"]
[PlyCount "69"]
[EventDate "2023.03.15"]
[EventType "swiss"]
[EventCountry "MNE"]
[SourceTitle "playchess.com"]
[Source "ChessBase"]
[SourceQuality "1"]
[TimeControl "40/5400+30:1800+30"]

{[%evp 25,69,42,45,45,53,25,29,33,35,25,41,0,0,0,0,0,6,-5,9,2,1,6,14,0,7,4,10,8,4,0,0,-20,0,0,0,0,0,0,0,0,0,0,0,0,0,0]} 1. e4 {[%emt 0:00:03]} c5 {[%emt 0:00:04]} 2. Nc3 {[%emt 0:00:13]} e6 {[%emt 0:00:31]} 3. Nf3 {[%emt 0:01:21]} Nc6 {[%emt 0:00:24]} 4. d4 {[%emt 0:01:05]} cxd4 {[%emt 0:00:05]} 5. Nxd4 {[%emt 0:00:05]} Qc7 {[%emt 0:00:03]} 6. g3 {[%emt 0:00:42]} a6 {[%emt 0:00:05]} 7. Bg2 {[%emt 0:00:15]} d6 {[%emt 0:00:06]} 8. O-O {[%emt 0:01:53]} Bd7 {[%emt 0:00:07]} 9. Nxc6 {[%emt 0:01:36]} Bxc6 {[%emt 0:00:12]} 10. a4 {[%emt 0:00:25]} Nf6 {[%emt 0:00:32]} 11. a5 {[%emt 0:02:14]} Be7 {[%emt 0:01:17]} 12. Be3 {[%emt 0:02:52]} Nd7 {[%emt 0:21:26]} 13. Na4 {[%emt 0:05:28]} O-O {[%emt 0:02:22]} 14. Nb6 {[%emt 0:02:30] B47: Sicilian: Taimanov: 5 Nc3 Qc7 6 f4, 6 g3 and 6 Be2.} Rae8 {[%emt 0:02:16]} 15. Nxd7 {[%emt 0:04:12]} Qxd7 {[%emt 0:00:56]} 16. c4 {[%emt 0:02:09] White has an edge.} f5 {[%emt 0:07:43]} 17. Qd3 {[%emt 0:04:13] [#]} Bf6 $146 {[%emt 0:09:55]} ({Predecessor:} 17... Bxe4 18. Bxe4 fxe4 19. Qxe4 Rf5 20. Rfd1 Bf8 21. Rd3 Qf7 22. Bb6 Rc8 23. b3 d5 {½-½ Bailet,P (2500)-David,A (2520) Cattolica op 7th 2020 (5)}) 18. Rab1 {[%emt 0:02:41]} fxe4 {[%emt 0:04:38] The position is equal.} 19. Bxe4 {[%emt 0:00:10]} Bxe4 {[%emt 0:00:14]} 20. Qxe4 {[%emt 0:00:03]} d5 {[%emt 0:00:16]} 21. Qg4 {[%emt 0:08:09]} Qc7 {[%emt 0:07:50]} 22. cxd5 {[%emt 0:02:39]} exd5 {[%emt 0:05:51]} (22... Qxa5 23. d6 $16 (23. dxe6 Qd5 $11)) 23. Bb6 {[%emt 0:02:50]} Qc4 {[%emt 0:00:47]} 24. Qd7 {[%emt 0:09:06]} Re7 {[%emt 0:02:50][%cal Be8e7,Be7e2,Be2b2][%mdl 32]} 25. Qd6 {[%emt 0:01:04]} Re2 {[%emt 0:06:44]} 26. Rbc1 {[%emt 0:14:35]} Qe4 {[%emt 0:01:56]} ({Don't play} 26... Be7 27. Qd7 Qb5 28. Qxb5 axb5 29. Rc7 $16) 27. Qd7 {[%emt 0:02:20]} d4 {[%emt 0:16:23]} ({Resist} 27... Rxb2 28. Rfe1 Re2 29. Rxe2 Qxe2 30. Qxd5+ Kh8 31. Qxb7 $16) 28. Rcd1 {[%emt 0:10:45]} ({Much worse is} 28. Rc8 Rxc8 29. Qxc8+ Kf7 $17) 28... Rxb2 {[%emt 0:03:41]} 29. Rxd4 {[%emt 0:11:21]} Bxd4 {[%emt 0:04:29]} 30. Bxd4 {[%emt 0:00:07][%csl Gd4][%cal Rd7g7] [#]} Rf7 {[%emt 0:00:09]} 31. Qd8+ {[%emt 0:04:05]} Rf8 {[%emt 0:00:05]} 32. Qd7 {[%emt 0:00:28][%csl Gd4][%cal Rd7g7] Chess con chili.} Rf7 {[%emt 0:00:07]} 33. Qd8+ {[%emt 0:01:00]} Rf8 {[%emt 0:00:04]} 34. Qd7 {[%emt 0:00:11][%csl Gd4][%cal Rd7g7] [#]} Rf7 {[%emt 0:00:03]} 35. Qd8+ {[%emt 0:00:46] Weighted Error Value: White=0.07 (flawless) /Black=0.05 (flawless)} 1/2-1/2

[Event "European Women-ch 2023"]
[Site "Petrovac"]
[Date "2023.03.27"]
[Round "9.16"]
[White "Zherebtsova, Alexandra"]
[Black "Stefanova, Antoaneta"]
[Result "1/2-1/2"]
[ECO "D85"]
[WhiteElo "2155"]
[BlackElo "2435"]
[Annotator "TA"]
[PlyCount "66"]
[EventDate "2023.03.15"]
[EventType "swiss"]
[EventCountry "MNE"]
[SourceTitle "playchess.com"]
[Source "ChessBase"]
[SourceQuality "1"]
[TimeControl "40/5400+30:1800+30"]

{[%evp 15,66,14,21,21,26,0,0,0,9,0,0,0,0,0,43,45,69,25,40,35,32,44,40,37,31,35,84,0,0,0,0,0,0,0,0,0,0,0,4,5,3,0,0,0,7,0,0,0,12,0,0,0,10]} 1. d4 {[%emt 0:02:27]} Nf6 {[%emt 0:04:37]} 2. c4 {[%emt 0:00:46]} g6 {[%emt 0:00:30]} 3. Nc3 {[%emt 0:00:43]} d5 {[%emt 0:00:12]} 4. cxd5 {[%emt 0:01:10]} Nxd5 {[%emt 0:00:07]} 5. e4 {[%emt 0:01:17]} Nxc3 {[%emt 0:00:09]} 6. bxc3 {[%emt 0:00:04]} Bg7 {[%emt 0:00:03]} 7. Qa4+ {[%emt 0:01:11] 7.Nf3 gains popularity.} Nd7 {[%emt 0:18:27]} 8. Nf3 {[%emt 0:12:32]} O-O {[%emt 0:01:30]} 9. Be2 {[%emt 0:06:12] D85: Exchange Grünfeld: Unusual White 7th moves and lines with 7 Nf3.} e5 {[%emt 0:04:02]} 10. Ba3 {[%emt 0:15:10]} Re8 {[%emt 0:03:37]} 11. d5 {[%emt 0:13:40]} f5 {[%emt 0:20:23] [#]} 12. d6 $146 {[%emt 0:07:36]} ({Predecessor:} 12. exf5 gxf5 13. O-O Nb6 14. Qb5 a6 15. Qb3 Qxd5 16. c4 Qc6 17. c5+ Nd5 18. Bc4 Be6 19. Ng5 Rad8 20. Rad1 Nf4 21. Rxd8 Bxc4 {1-0 Gago Padreny,I (2289)-Wartiovaara,O (2190) Titled Tuesday intern op 14th April blitz 2020 (6)}) 12... cxd6 {[%emt 0:03:52]} ({Don't play} 12... Nb6 13. Bc4+ Kh8 14. dxc7 Nxa4 15. cxd8=N Rxd8 16. Ng5 $14) 13. Qb3+ {[%emt 0:01:36]} ({But not} 13. Bxd6 Nb6 14. Qa3 fxe4 $17) 13... Kh8 {[%emt 0:00:10]} 14. h4 $1 {[%emt 0:02:03] [#] Ng5 would be deadly.} Nf8 {[%emt 0:06:13]} (14... fxe4 $2 15. Ng5 Rf8 16. Bxd6 $18 (16. Nxe4 Nc5 $11)) 15. Ng5 $36 {[%emt 0:03:25][%mdl 2048] White threatens Nf7+ and mate. Black is under pressure.} Be6 {[%emt 0:02:33]} 16. Bc4 {[%emt 0:01:53]} Qf6 {[%emt 0:11:22]} 17. Rd1 $1 {[%emt 0:10:43]} Rad8 {[%emt 0:02:45]} 18. Rxd6 {[%emt 0:10:05]} Rxd6 {[%emt 0:00:05]} 19. Bxd6 {[%emt 0:00:05]} Bxc4 {[%emt 0:09:23]} 20. Qxc4 {[%emt 0:00:03] And now Nf7+ would win.} Ne6 {[%emt 0:06:26] [#]} (20... h6 $1 $14 {deserves consideration.}) 21. Bxe5 {[%emt 0:01:48] White has more active pieces.} Qe7 $11 {[%emt 0:00:05][%cal Oe6g5] White must now prevent ...Nxg5! The position is equal.} 22. Bxg7+ {[%emt 0:03:09]} Kxg7 {[%emt 0:00:06]} 23. O-O {[%emt 0:02:30]} Nxg5 {[%emt 0:00:24]} 24. hxg5 {[%emt 0:00:07]} Qxe4 {[%emt 0:01:25][%mdl 4096] Endgame KQR-KQR} 25. Qb5 {[%emt 0:01:07]} a6 {[%emt 0:02:50]} 26. Qb6 {[%emt 0:00:34]} Qc6 {[%emt 0:01:28]} 27. Qd4+ {[%emt 0:00:13]} (27. Qxc6 {simplifies} bxc6 28. Rb1 Re2 29. a3) 27... Kg8 {[%emt 0:00:02]} 28. Rb1 {[%emt 0:00:54]} b5 {[%emt 0:00:58]} 29. Rd1 {[%emt 0:00:47]} Qc7 {[%emt 0:00:42]} 30. Qd5+ {[%emt 0:00:36]} Kg7 {[%emt 0:00:21]} 31. Qd4+ {[%emt 0:00:14]} Kg8 {[%emt 0:00:17]} 32. Qd5+ {[%emt 0:00:05]} Kg7 {[%emt 0:00:04]} 33. Qd4+ {[%emt 0:00:05]} Kg8 {[%emt 0:00:47] Weighted Error Value: White=0.07 (flawless) /Black=0.07 (flawless)} 1/2-1/2

[Event "European Women-ch 2023"]
[Site "Petrovac"]
[Date "2023.03.27"]
[Round "9.16"]
[White "Huseynova, Lala"]
[Black "Pavlidou, Ekaterini"]
[Result "0-1"]
[ECO "B45"]
[WhiteElo "1694"]
[BlackElo "2178"]
[Annotator "TA"]
[PlyCount "157"]
[EventDate "2023.03.15"]
[EventType "swiss"]
[EventCountry "MNE"]
[SourceTitle "playchess.com"]
[Source "ChessBase"]
[SourceQuality "1"]
[TimeControl "40/5400+30:1800+30"]

{[%evp 22,157,41,13,44,0,67,2,42,27,38,39,55,39,51,2,10,-82,-80,-135,-132,-142,0,0,-2,-431,58,-87,-18,-108,-10,-18,205,68,190,216,763,323,329,294,372,335,409,409,409,409,403,391,376,283,272,228,370,346,402,0,83,0,396,257,235,0,395,398,396,391,389,361,361,361,313,350,339,330,523,520,257,516,506,201,111,112,112,112,487,462,6084,5712,12837,12837,12837,12838,12837,12837,12837,12837,12837,12838,12840,12840,12841,12841,12841,0,12841,12839,12841,80,80,0,0,0,0,0,0,0,0,0,0,0,0,-12841,-12842,-12842,-12843,-12843,-12842,-12842,-12843,-12843,-12843,-12844,-12844,-12845,-12845,-12847,-12847,-12850]} 1. e4 {[%emt 0:00:03]} c5 {[%emt 0:00:11]} 2. Nf3 {[%emt 0:00:03][%cal Bg1f3,Bf3d4,Bd4b5,Bb5c3,Bc3e4,Be4c5][%mdl 32]} Nc6 {[%emt 0:00:29]} 3. d4 {[%emt 0:00:10]} cxd4 {[%emt 0:00:30]} 4. Nxd4 {[%emt 0:00:04]} Nf6 {[%emt 0:00:13]} 5. Nc3 {[%emt 0:00:23]} e6 {[%emt 0:00:07][%cal Be7e6,Be6d5,Bd5d4][%mdl 32]} 6. Ndb5 {[%emt 0:00:27]} Bb4 {[%emt 0:01:08]} 7. a3 {[%emt 0:00:11]} Bxc3+ {[%emt 0:00:05]} 8. Nxc3 {[%emt 0:00:03]} d5 {[%emt 0:02:34]} 9. exd5 {[%emt 0:00:20]} exd5 {[%emt 0:00:14]} 10. Bd3 {[%emt 0:00:05]} O-O {[%emt 0:02:56]} 11. O-O {[%emt 0:00:11]} d4 {[%emt 0:08:07] 11...Bg4 is more fashionable.} 12. Ne4 {[%emt 0:04:41] aiming for Bg5.} h6 {[%emt 0:06:15] Dodges Bg5. B45: Sicilian Four Knights.} 13. Bf4 {[%emt 0:04:39]} (13. Qf3 $5 {[%cal Re4f6]}) 13... Nd5 {[%emt 0:03:21]} (13... Nxe4 $1 $11 14. Bxe4 Qf6) 14. Bd2 {[%emt 0:09:59]} (14. Qf3 $14) 14... f5 {[%emt 0:01:54] [#] The position is equal.} 15. Nc5 $146 {[%emt 0:03:04]} ({Predecessor:} 15. Ng3 f4 16. Ne4 f3 17. g3 Ne5 18. Re1 Nxd3 19. cxd3 Qd7 20. Kh1 Qh3 21. Rg1 {0-1 Privorotsky,O-Bukhover,A URS U20-ch Moscow 1960}) 15... b6 {[%emt 0:01:54]} 16. Nb3 {[%emt 0:02:22]} Bb7 {[%emt 0:04:20]} 17. Bb5 {[%emt 0:02:00]} Qf6 {[%emt 0:03:08]} 18. Bc4 {[%emt 0:16:31]} (18. Re1 $14) 18... Rad8 {[%emt 0:05:37]} (18... Rfd8 $5 {[%cal Rc6e5]}) 19. Bb4 {[%emt 0:03:22]} (19. Qe2 $11 {remains equal.}) 19... Rf7 {[%emt 0:01:51]} 20. Re1 {[%emt 0:17:16]} (20. Bxd5 $142 Rxd5 21. Re1) 20... a5 {[%emt 0:04:02]} 21. Bd2 {[%emt 0:00:24]} a4 {[%emt 0:02:03]} (21... Ne5 $17 22. Bf1 Ng4) 22. Nc1 {[%emt 0:00:27]} Ne5 {[%emt 0:14:57] Wards off Nd3} 23. Ba2 {[%emt 0:09:26][%mdl 8192]} (23. Bxd5 $1 $11 {and White stays safe.} Bxd5 24. Nd3 Nxd3 25. cxd3) 23... f4 $2 {[%emt 0:16:35]} (23... Qg6 $1 $19 {[%cal Od5f4] White must now prevent ...Nf4!} 24. Ne2 (24. Rxe5 $2 Ne3 $19 {[%mdl 64] Double Attack}) 24... Nf3+ 25. Kh1 Qh5) 24. f3 {[%emt 0:03:51]} (24. Qh5 $1 $14 {stays ahead.} g5 25. Nd3 Nxd3 26. cxd3) 24... b5 {[%emt 0:03:49] Black has more active pieces.} (24... Ne3 $17 25. Bxf7+ Nxf7 26. Bxe3 dxe3) 25. Ba5 {[%emt 0:09:53]} (25. Bxd5 $1 $11 {keeps the balance.} Bxd5 26. Nd3 Nxd3 27. cxd3) 25... Rdd7 {[%emt 0:02:12]} ({Better is} 25... Rc8 $17 {Threatens to win with ...Ne3.} 26. Nd3 Nc4 27. Bxc4 bxc4) 26. Nd3 $1 $11 {[%emt 0:03:35]} (26. Qxd4 $2 Nxf3+ 27. Kh1 Nxd4 $19) 26... Nc6 {[%emt 0:09:52]} (26... Nc4 $11 {and Black has nothing to worry.} 27. Re8+ Rf8) 27. Bd2 {[%emt 0:03:21]} (27. Nc5 $18 Nxa5 28. Re8+ (28. Nxd7 Rxd7 29. Qe2 Bc6 $11) 28... Kh7 29. Nxd7 Rxd7 30. Qd3+ g6 31. Qxb5) 27... Qg5 {[%emt 0:02:22]} (27... Ne3 $14 28. Qe2 (28. Bxf7+ Qxf7 29. Qb1 Re7 $14) 28... Rde7) 28. Nc5 $18 {[%emt 0:01:59]} (28. Re8+ $6 Kh7 29. Bxd5 (29. Qe2 Rde7 $14) 29... Qxd5 $16) 28... Nc3 $2 {[%emt 0:02:33]} (28... Kh7 29. Nxd7 Rxd7 30. Bxd5 Rxd5) 29. Bxc3 {[%emt 0:01:27]} (29. bxc3 Qxc5 30. Bxf4 (30. Bxf7+ Rxf7 31. Re8+ Kh7 $18) 30... dxc3+ 31. Be3 Qf5 32. Bxf7+ Rxf7 $18) (29. Bxf7+ Kxf7 30. Ne6 (30. bxc3 Qxc5 31. Bxf4 dxc3+ 32. Be3 Rxd1 $18) (30. Nxd7 $2 Nxd1 31. Raxd1 Qd5 $19) (30. Bxc3 Qxc5 31. Kh1 Rd8 $18) 30... Nxd1 $18) (29. Nxd7 $142 {White threatens Re8+ and mate.} Nxa2 30. Re8+ Kh7 31. Nf8+ Rxf8 32. Rxf8) 29... Qxc5 {[%emt 0:00:12]} 30. Bb4 {[%emt 0:01:20]} (30. Bxf7+ Kxf7 31. Bb4 Qf5) (30. Re8+ Kh7 31. Bb4 Qf5) 30... Nxb4 {[%emt 0:01:03]} 31. axb4 {[%emt 0:00:05]} Qxb4 {[%emt 0:00:47][%cal Ob7d5]} 32. Re8+ {[%emt 0:00:35]} (32. Bxf7+ Rxf7 33. Re8+ Rf8 $18) 32... Kh7 {[%emt 0:00:00]} 33. Qd3+ {[%emt 0:00:30]} g6 {[%emt 0:00:01]} 34. Bxf7 {[%emt 0:00:14]} Rxf7 {[%emt 0:00:01]} 35. Re6 {[%emt 0:01:23]} Rg7 {[%emt 0:00:02]} 36. Rae1 {[%emt 0:00:31]} Bd5 {[%emt 0:00:49]} (36... Bc8 $142) 37. R6e5 {[%emt 0:00:41]} Bc6 {[%emt 0:01:43]} 38. Re6 $2 {[%emt 0:00:58]} (38. h4 $18) 38... Bd5 $1 $16 {[%emt 0:00:03]} 39. R6e5 $2 {[%emt 0:00:03][%mdl 8192]} (39. Re8 $1 $16 {[%cal Re8e5]}) 39... Bc6 $1 $18 {[%emt 0:00:06]} 40. Rb1 {[%emt 0:00:00]} Qd6 {[%emt 0:00:00]} 41. Rbe1 {[%emt 0:03:33]} (41. Ree1 $18) 41... b4 $2 {[%emt 0:06:58][%mdl 8192]} (41... Qb4 $1 $11 {and Black is okay.}) 42. Qc4 {[%emt 0:06:22]} a3 {[%emt 0:04:24]} 43. bxa3 {[%emt 0:02:25]} bxa3 {[%emt 0:00:05]} 44. Re6 {[%emt 0:05:35][%cal Be5e6,Be6d6,Bd6d4,Bd4e4,Be4e7][%mdl 32]} Bd5 {[%emt 0:00:03]} 45. Rxd6 {[%emt 0:01:42]} Bxc4 {[%emt 0:00:06]} 46. Rxd4 {[%emt 0:00:38][%mdl 4096] Endgame KRR-KRB} Rc7 {[%emt 0:02:29]} 47. Rde4 $1 {[%emt 0:00:29]} (47. Rxf4 a2 48. Rd4 Bf7 $16) 47... g5 {[%emt 0:06:11] [#]} (47... Kg8 {was necessary.} 48. Rxf4 a2) 48. Re7+ $1 {[%emt 0:00:10]} Rxe7 {[%emt 0:00:04]} 49. Rxe7+ {[%emt 0:00:02] KR-KB} Kg6 {[%emt 0:00:06]} 50. Re5 $2 {[%emt 0:01:29]} (50. Kf2 a2 51. Ra7) 50... a2 {[%emt 0:01:36]} 51. Ra5 {[%emt 0:01:18]} h5 {[%emt 0:00:33]} 52. Kf2 {[%emt 0:00:25] g3 is the strong threat.} Kf6 $2 {[%emt 0:01:32][%mdl 8192] [#]} (52... h4 $16 {is tougher.} 53. Ke1 Kh5) 53. g3 $1 {[%emt 0:00:57]} Kg6 {[%emt 0:01:05]} (53... fxg3+ $142 54. Kxg3 (54. hxg3 Bd5 $11 {[%mdl 64] Promotion}) 54... Ke7) 54. gxf4 {[%emt 0:00:43]} gxf4 {[%emt 0:00:02]} 55. h4 {[%emt 0:00:42]} Kf6 {[%emt 0:00:22]} 56. Ke1 {[%emt 0:00:51]} (56. Rxh5 a1=Q 57. Kg2 Qf1+ 58. Kh2 Qf2+ 59. Kh1 Qxf3+ 60. Kg1 Qxh5 61. Kg2 Qxh4 62. Kg1 Qg3+ 63. Kh1 Bd5#) 56... Bd5 {[%emt 0:00:40]} 57. Ke2 {[%emt 0:02:02]} (57. Rxd5 $2 {perishes.} a1=Q+ 58. Ke2 Qg1 $19) 57... Bc4+ {[%emt 0:00:02]} 58. Kd2 {[%emt 0:00:11]} Bd5 {[%emt 0:00:04]} 59. Kd3 {[%emt 0:01:30]} (59. Rxd5 $2 {loses.} a1=Q 60. Rd3 Qh1 $19) 59... Bxf3 {[%emt 0:01:10]} 60. c4 {[%emt 0:00:34]} Bc6 {[%emt 0:02:27]} 61. Kd4 {[%emt 0:01:22]} Ke6 {[%emt 0:02:16]} 62. Kd3 {[%emt 0:01:52]} Kf6 $1 {[%emt 0:00:32]} 63. Ke2 {[%emt 0:00:56] Against Bf3+} Be4 {[%emt 0:01:26]} 64. Kf2 $2 {[%emt 0:00:47]} (64. Rxa2 $18 {is more deadly.} Kf5 65. Kf2) 64... Bd3 $16 {[%emt 0:01:49]} 65. c5 {[%emt 0:00:27]} (65. Rxa2 $16 Bxc4 66. Ra5) 65... Bc4 $11 {[%emt 0:00:41]} 66. Kf3 {[%emt 0:00:26]} (66. c6 $5 Ke6 $8 67. Kf3 $16) 66... Ke5 {[%emt 0:00:36]} 67. c6+ {[%emt 0:01:44]} Bd5+ {[%emt 0:00:53]} 68. Kf2 {[%emt 0:01:02] Strongly threatening c7.} (68. Ke2 Kd6 69. Rxd5+ Kxd5) 68... Kd6 {[%emt 0:00:20]} 69. Ra6 {[%emt 0:00:05]} Kc7 {[%emt 0:00:30]} (69... Bxc6 $2 70. Rxa2 Bh1 71. Ra1 $18) (69... Bc4 $5 70. Ra4 $8 Bg8 $15) 70. Ke1 {[%emt 0:03:35]} Bc4 {[%emt 0:00:43] Chess con chili.} (70... Bxc6 $2 71. Rxa2 Bh1 72. Ra5 $18) (70... f3 $5) 71. Ra8 $2 {[%emt 0:01:32][%mdl 8192]} (71. Ra4 $11) 71... Kxc6 $19 {[%emt 0:00:10] Black is clearly winning.} 72. Kd2 {[%emt 0:00:16]} f3 {[%emt 0:01:17][%cal Bf4f3,Bf3f2][%mdl 32]} 73. Ke3 {[%emt 0:00:11]} Bd5 {[%emt 0:00:10]} 74. Rc8+ {[%emt 0:02:43]} Kb5 {[%emt 0:00:27]} 75. Rc1 {[%emt 0:00:21]} Kb4 {[%emt 0:00:40]} 76. Rf1 {[%emt 0:00:38]} Kc3 {[%emt 0:01:29]} 77. Rh1 {[%emt 0:00:28] [#]} f2 $1 {[%emt 0:01:38][%mdl 512]} 78. Rc1+ {[%emt 0:01:01]} (78. Rd1 Bb3) 78... Kb2 {[%emt 0:00:05]} 79. Kd2 {[%emt 0:00:02] Weighted Error Value: White=0.79/Black=0.85} 0-1

[Event "European Women-ch 2023"]
[Site "Petrovac"]
[Date "2023.03.27"]
[Round "9.17"]
[White "Velikic, Adela"]
[Black "Shpanko, Nadiia"]
[Result "1/2-1/2"]
[ECO "B12"]
[WhiteElo "2329"]
[BlackElo "2164"]
[Annotator "TA"]
[PlyCount "85"]
[EventDate "2023.03.15"]
[EventType "swiss"]
[EventCountry "MNE"]
[SourceTitle "playchess.com"]
[Source "ChessBase"]
[SourceQuality "1"]
[TimeControl "40/5400+30:1800+30"]

{[%evp 9,85,4,22,8,10,10,23,12,18,0,17,0,0,0,0,0,0,10,31,35,46,0,43,47,105,102,83,93,184,190,180,180,152,135,126,131,136,83,83,83,67,67,72,38,62,23,38,21,25,18,28,8,28,28,116,117,199,206,181,136,136,136,129,97,97,35,41,31,72,6,7,0,0,0,0,0,0,0]} 1. e4 {[%emt 0:00:03]} c6 {[%emt 0:00:10]} 2. d4 {[%emt 0:00:05]} d5 {[%emt 0:00:04]} 3. e5 {[%emt 0:00:06]} c5 {[%emt 0:00:10]} 4. Nf3 {[%emt 0:00:11]} cxd4 {[%emt 0:00:08]} 5. Nxd4 {[%emt 0:00:08]} Nc6 {[%emt 0:00:07]} 6. Nxc6 {[%emt 0:00:24] B12: Caro-Kann: Advance Variation.} bxc6 {[%emt 0:00:06] Black is weak on the dark squares} 7. Bd3 {[%emt 0:00:11]} e6 {[%emt 0:01:06]} 8. O-O {[%emt 0:00:45] White has an edge.} Ne7 {[%emt 0:01:02]} 9. Nd2 {[%emt 0:02:26]} a5 {[%emt 0:03:34]} 10. Qe2 {[%emt 0:04:24]} Ng6 {[%emt 0:02:40]} 11. Nf3 {[%emt 0:00:57]} Be7 {[%emt 0:03:41]} 12. g3 {[%emt 0:20:22]} O-O {[%emt 0:11:07]} 13. h4 {[%emt 0:15:49][%cal Bh2h4,Bh4h5,Bh5h6][%mdl 32]} f6 {[%emt 0:20:54]} 14. exf6 {[%emt 0:01:16]} Bxf6 {[%emt 0:03:45] [#]} 15. Ng5 $146 {[%emt 0:11:48]} (15. Re1 $14) ({Predecessor:} 15. h5 Nh8 16. Ne5 Bxe5 17. Qxe5 Nf7 18. Qc3 e5 19. h6 Re8 20. Qxc6 Bg4 21. f3 {1-0 Karjakin,S (2743)-Asadli,V (2579) Gashimov Memorial Rapid 7th 2021 (6.1)}) 15... Bxg5 {[%emt 0:03:22]} (15... e5 $5 {[%cal Re5e4]} 16. Nxh7 e4 $11) 16. Bxg5 {[%emt 0:00:13]} Qb6 {[%emt 0:00:06]} (16... Qd6 $14) 17. h5 $16 {[%emt 0:04:06]} Nh8 {[%emt 0:00:59]} 18. h6 {[%emt 0:04:15]} Qxb2 {[%emt 0:07:59]} (18... Qc7 $16) 19. Rab1 $18 {[%emt 0:04:14]} Qd4 {[%emt 0:00:53]} 20. Rfd1 {[%emt 0:12:46][%cal Od3h7]} Qa7 {[%emt 0:00:32][%cal Oe6e5]} 21. Be3 {[%emt 0:00:44][%cal Bg5e3,Be3d4,Bd4e5][%mdl 32] Prevents e5} Qe7 {[%emt 0:15:56]} 22. Bd4 {[%emt 0:06:07]} e5 {[%emt 0:04:34]} 23. Qxe5 {[%emt 0:06:32]} ({White should try} 23. hxg7 Qxg7 24. Qxe5 Qxe5 25. Bxe5) 23... Qxe5 $16 {[%emt 0:00:53]} 24. Bxe5 {[%emt 0:00:01] This pair of bishops is nice.} gxh6 {[%emt 0:00:28]} 25. Rb6 {[%emt 0:01:06]} Nf7 {[%emt 0:00:56]} 26. Bf4 {[%emt 0:01:32] White has more active pieces.} Bg4 {[%emt 0:01:49]} 27. Rdb1 {[%emt 0:00:48]} (27. Re1 $5 {[%cal Rb6c6]}) 27... Ng5 {[%emt 0:03:01]} 28. Bxg5 {[%emt 0:00:59]} (28. Kg2 $5 {[%cal Rb6c6]}) 28... hxg5 {[%emt 0:00:05]} 29. Rxc6 {[%emt 0:00:18]} Rab8 {[%emt 0:03:33]} 30. Rxb8 {[%emt 0:00:54]} Rxb8 $11 {[%emt 0:00:06][%mdl 4096] Endgame KRB-KRB} 31. Kg2 {[%emt 0:00:33] Wards off Bf3+} Rb2 {[%emt 0:01:32]} (31... Bd1 $11) 32. Rd6 {[%emt 0:01:26]} Rxa2 {[%emt 0:02:21]} (32... Bd1 $16) 33. Rxd5 $18 {[%emt 0:00:09]} Be6 {[%emt 0:01:13]} 34. Re5 {[%emt 0:00:33]} (34. Bc4 $6 Rxc2 35. Rxg5+ Kf7 $16) 34... Bf7 {[%emt 0:00:37]} 35. Rxg5+ {[%emt 0:00:19]} Kh8 {[%emt 0:01:34]} 36. Rb5 {[%emt 0:01:23]} Ra1 {[%emt 0:04:06]} 37. Rb8+ {[%emt 0:00:21]} ({White should play} 37. Be4 $16) 37... Kg7 $14 {[%emt 0:00:06]} 38. Rb7 {[%emt 0:00:32] Bc4 would be deadly.} Kf8 {[%emt 0:00:14] [#] And now ...Bd5+ would win.} 39. f3 {[%emt 0:00:38]} (39. Bxh7 $2 Bd5+ 40. f3 Bxb7 $19) (39. Rc7 $1 $16) 39... a4 $11 {[%emt 0:01:06] The position is equal.} 40. Rb8+ {[%emt 0:00:00]} (40. Bxh7 $2 a3 41. Ra7 a2 $19) 40... Kg7 {[%emt 0:00:00]} 41. Rb7 {[%emt 0:09:12] Hoping for Bc4.} Kf8 {[%emt 0:02:04]} 42. Rb8+ {[%emt 0:08:51]} (42. Bxh7 $2 {perishes.} a3 43. g4 (43. Ra7 $2 a2 $19) 43... a2 $19) 42... Kg7 {[%emt 0:00:06]} 43. Rb7 {[%emt 0:00:05] Blacks defense is rewarded with a draw.   Weighted Error Value: White=0.12 (very precise) /Black=0.16 (very precise)} 1/2-1/2